Cogmind - Beta 9.4 *** ADVENTURER MODE // 2020.02.15 @ 20:31:27 Player: JayDee Result: Destroyed by as-95736 with Assembled Rifle Performance ------------- Evolutions (0) 0 Regions Visited (2) 400 Robots Destroyed (13) 65 Value Destroyed (407) 407 Prototype IDs (2) 40 Alien Tech Used (0) 0 Bonus (0) 0 TOTAL SCORE: 912 Bonus ------- None Cogmind --------- Core Integrity 0/250 Matter 300/300 Energy 146/160 System Corruption 6% Temperature Cool (2) Movement Walking (150) Ox1 Location -10/Mines Parts ------- > --- POWER (1) -------- Light Nuclear Core > --- PROPULSION (2) --- Aluminum Leg Aluminum Leg > --- UTILITY (2) ------ Medium Storage Unit Large Storage Unit > --- WEAPON (2) ------- Assault Rifle > --- INVENTORY (14) --- Aluminum Leg Small Storage Unit Visual Processing Unit Sensor Array Terrain Scanner Terrain Scanner Grenade Launcher Peak State ------------ > --- POWER ------------ Light Ion Engine > --- PROPULSION ------- Aluminum Leg Aluminum Leg > --- UTILITY ---------- Medium Storage Unit Large Storage Unit > --- WEAPON ----------- Particle Gun Assault Rifle > --- INVENTORY -------- Light Ion Engine Light Nuclear Core Aluminum Leg Aluminum Leg Aluminum Leg Aluminum Leg Small Storage Unit Visual Processing Unit Sensor Array Terrain Scanner Terrain Scanner Assault Rifle Grenade Launcher [Rating: 9] Favorites ----------- Power Light Ion Engine Engine Light Ion Engine Power Core Light Nuclear Core Propulsion Aluminum Leg Leg Aluminum Leg Utility Large Storage Unit Storage Large Storage Unit Weapon Assault Rifle Energy Gun Particle Gun Energy Cannon Beam Cannon Ballistic Gun Assault Rifle Build | -11 -10 -10 ------- Run | Scr Mat Min Slots Evolved . | . . . Power . | . . . Propulsion . | . . . Utility . | . . . Weapon . | . . . Parts Attached 18 | 8 3 7 Power 3 | 1 . 2 Engine 2 | 1 . 1 Core 1 | . . 1 Reactor . | . . . Propulsion 5 | 2 . 3 Treads . | . . . Leg 5 | 2 . 3 Wheel . | . . . Hover . | . . . Flight . | . . . Utility 4 | 2 2 . Device . | . . . Storage 4 | 2 2 . Processor . | . . . Hackware . | . . . Protection . | . . . Artifact . | . . . Weapon 6 | 3 1 2 Energy Gun 1 | . . 1 Energy Cannon 1 | . 1 . Ballistic Gun 4 | 3 . 1 Ballistic Cannon . | . . . Launcher . | . . . Special Weapon . | . . . Impact Weapon . | . . . Slashing Weapon . | . . . Piercing Weapon . | . . . Special Melee Weapon . | . . . Unidentified Prototypes . | . . . Parts Lost 8 | . . 8 Power 2 | . . 2 Propulsion 3 | . . 3 Utility . | . . . Weapon 3 | . . 3 Highest Loss Streak 7 | . . 7 Average Slot Usage (%) 98 | . 100 97 Engine 13 | . 14 13 Leg 27 | . 28 27 Storage 28 | . 28 28 Energy Gun 1 | . . 4 Energy Cannon 11 | . 13 7 Ballistic Gun 14 | . 14 13 Naked Turns . | . . . Heaviest Build 32 | 15 32 32 Greatest Support 20 | 20 20 20 Greatest Overweight (x) 1 | . 1 1 Average Overweight (x) . | . . 1 Largest Inventory Capacity 14 | 8 14 14 Average Capacity 12 | 5 13 14 Most Carried 14 | 2 14 14 Average Carried 10 | . 9 13 Final Capacity 14 | 8 14 14 Final Carried 14 | 1 14 7 Class Distribution -------------------- 100% | Mutant Dominant Class ---------------- Mutant | -10/Materials Mutant | -10/Mines Resources | -11 -10 -10 ----------- Run | Scr Mat Min Matter Collected 438 | 287 85 66 Remotely . | . . . Salvage Created 535 | 84 288 163 Parts 24 | 2 14 8 Haulers Intercepted . | . . . Recyclers Shooed . | . . . Parts Field Recycled . | . . . Retrieved Matter . | . . . Parts Self-Destructed . | . . . Prevented . | . . . Kills | -11 -10 -10 ------- Run | Scr Mat Min Combat Hostiles Destroyed 10 | . 6 4 Guns 4 | . 2 2 Cannons 6 | . 4 2 Classes Destroyed 3 | 1 2 . Recycler 2 | 1 1 . Watcher 1 | . 1 . Grunt 10 | . 6 4 Best Kill Streak 4 | 1 3 4 Combat Bots Only 4 | . 2 4 Max Kills in Single Turn 1 | 1 1 1 Gunslinging . | . . . Exploded . | . . . Melee . | . . . Uniques/NPCs Destroyed . | . . . Combat | -11 -10 -10 -------- Run | Scr Mat Min Damage Taken 1121 | . 188 933 Core 254 | . 28 226 Absorbed by Shields . | . . . Core Remaining (%) 100 | 100 . . Volleys Fired 30 | 3 17 10 Largest 2 | 2 2 2 Hottest 85 | 40 80 85 Shots Fired 60 | 6 34 20 Gun 35 | 6 17 12 Cannon 25 | . 17 8 Launcher . | . . . Special . | . . . Kinetic 33 | 6 17 10 Thermal 27 | . 17 10 Explosive . | . . . Electromagnetic . | . . . Robot Hit Streak 50 | 4 32 50 Robot Miss Streak 1 | 1 . . Penetration Max . | . . . Secondary Targets . | . . . Shots Hit Robots 50 | 4 28 18 Core Hits 25 | 2 12 11 Critical Hits . | . . . Critical Kills . | . . . Critical Parts Destroyed . | . . . Melee Attacks . | . . . Impact . | . . . Slashing . | . . . Piercing . | . . . Sneak Attacks . | . . . Combat Hostiles . | . . . Follow-up Attacks . | . . . Damage Inflicted 774 | 49 445 280 Guns 327 | 49 142 136 Cannons 437 | . 299 138 Explosions . | . . . Melee . | . . . Ramming 10 | . 4 6 Kinetic 295 | 49 142 104 Thermal 469 | . 299 170 Explosive . | . . . Electromagnetic . | . . . Impact . | . . . Slashing . | . . . Piercing . | . . . Highest Corruption 6 | . . 6 Average Corruption 2 | . . 2 Corruption Purged . | . . . Overload Shots . | . . . Overflow Damage . | . . . Projectiles . | . . . Explosions . | . . . Melee . | . . . Knockbacks . | . . . Impact . | . . . Kinetic . | . . . Secondary . | . . . Self-Inflicted Damage 3 | . 2 1 Shots . | . . . Rammed 2 | . 1 1 Targets Rammed 4 | . 1 3 Kicked 2 | . . 2 Crushed . | . . . Highest Temperature 165 | . 120 165 Average Temperature 52 | . 44 63 Received Heat Transfer 336 | . 135 201 Siege Activations . | . . . Robots Corrupted . | . . . Combat Hostiles . | . . . Parts Fried . | . . . Impact Corruptions . | . . . Robots Melted . | . . . Combat Hostiles . | . . . Parts Melted 2 | . 2 . Heat Transferred 999 | . 629 370 Parts Sabotaged . | . . . Parts Stolen . | . . . Parts Stripped . | . . . Power Chain Reactions . | . . . Missiles Intercepted . | . . . Alert | -11 -10 -10 ------- Run | Scr Mat Min Peak Influence 217 | 5 217 113 Average Influence 50 | 2 59 47 Maximum Alert Level 1 | . 1 . Low Security (%) 99 | 100 99 100 Level 1 . | . . . Level 2 . | . . . Level 3 . | . . . Level 4 . | . . . Level 5 . | . . . High Security . | . . . Max Security . | . . . Squads Dispatched 2 | . 1 1 Investigation 2 | . 1 1 Extermination . | . . . Reinforcement . | . . . Assault . | . . . Garrison . | . . . Intercept . | . . . Construction Impeded . | . . . Haulers Reinforced . | . . . Stealth | -11 -10 -10 --------- Run | Scr Mat Min Distress Signals 1 | . 1 . Communications Jammed . | . . . Distress Signals . | . . . Times Spotted 38 | . 10 28 Peak Tracking Total 18 | . 4 18 Tactical Retreats 4 | . 2 2 Traps | -11 -10 -10 ------- Run | Scr Mat Min Traps Triggered 1 | . 1 . Indirectly . | . . . Trap Hack Attempts . | . . . Triggered . | . . . Disarmed . | . . . Reprogrammed . | . . . Reused . | . . . Traps Extracted . | . . . Installed . | . . . Triggered . | . . . Machines | -11 -10 -10 ---------- Run | Scr Mat Min Machines Disabled . | . . . Max in Single Turn . | . . . Machines Sabotaged . | . . . Garrisons Compromised . | . . . Overloaded Fab Kills . | . . . Fab Network Shutdowns . | . . . Hacking | -11 -10 -10 --------- Run | Scr Mat Min Machines Accessed 7 | . 6 1 Terminals 6 | . 5 1 Fabricators . | . . . Repair Stations . | . . . Recycling Units 1 | . 1 . Scanalyzers . | . . . Garrison Access . | . . . Total Hacks 25 | . 22 3 Successful 19 | . 18 1 Failed 6 | . 4 2 Catastrophic . | . . . Database Lockouts . | . . . Manual 9 | . 7 2 Terminals 19 | . 16 3 Fabricators . | . . . Repair Stations . | . . . Recycling Units 6 | . 6 . Scanalyzers . | . . . Garrison Access . | . . . Terminal Hacks 15 | . 14 1 Record 6 | . 6 . Prototype ID Bank 1 | . 1 . Level Access Points 1 | . 1 . Branch Access Points 1 | . 1 . Emergency Access Points 1 | . 1 . Maintenance Status 1 | . 1 . Recall Investigation 1 | . 1 . Registered Components 1 | . 1 . Zone Layout 2 | . 1 1 Fabricator Hacks . | . . . Repair Station Hacks . | . . . Recycling Unit Hacks 4 | . 4 . Process 1 | . 1 . Report Inventory 1 | . 1 . Retrieve Matter 1 | . 1 . Retrieve Components 1 | . 1 . Scanalyzer . | . . . Garrison Access Hacks . | . . . Unauthorized Hacks . | . . . Terminals . | . . . Fabricators . | . . . Repair Stations . | . . . Recycling Units . | . . . Scanalyzers . | . . . Garrison Access . | . . . Data Cores Recovered . | . . . Used . | . . . Hacking Detections 6 | . 5 1 Full Trace Events 1 | . . 1 Feedback Events . | . . . Feedback Blocked . | . . . Robot Schematics Acquired . | . . . Robots Built . | . . . Matter . | . . . Time . | . . . Total Robot Build Rating . | . . . Part Schematics Acquired . | . . . Parts Built . | . . . Matter . | . . . Time . | . . . Total Part Build Rating . | . . . Parts Repaired . | . . . Time . | . . . Parts Recycled . | . . . Recycled Matter 4 | . 4 . Retrieved Matter 4 | . 4 . Retrieved Components . | . . . Parts Scanalyzed . | . . . Part Schematics Acquired . | . . . Parts Damaged . | . . . Bothacking | -11 -10 -10 ------------ Run | Scr Mat Min Used RIF Installer . | . . . Robots Hacked . | . . . Non-combat . | . . . Combat . | . . . Robot Hacks Applied . | . . . Relay Couplers Released . | . . . Robots Rewired . | . . . Allies Hacked . | . . . Hacks Repelled . | . . . Allies | -11 -10 -10 -------- Run | Scr Mat Min Total Allies . | . . . Largest Group . | . . . Highest-Rated Group . | . . . Highest-Rated Ally . | . . . Total Orders . | . . . Ally Attacks . | . . . Total Damage . | . . . Kills . | . . . Allies Corrupted . | . . . Allies Melted . | . . . Intel | -11 -10 -10 ------- Run | Scr Mat Min Robot Analysis Total . | . . . Derelict Logs Recovered . | . . . Drone Launches . | . . . Drone Recoveries . | . . . Exploration | -11 -10 -10 ------------- Run | Scr Mat Min Turns Passed 915 | 82 527 306 Spaces Moved 525 | 50 299 176 Core 1 | 1 . . Treads . | . . . Legs 524 | 49 299 176 Wheels . | . . . Hover . | . . . Flight . | . . . Fastest Speed 50 | 50 120 150 Average Speed 144 | 118 145 150 Slowest Speed 150 | 120 150 150 Overloaded Moves . | . . . Propulsion Burnouts . | . . . Robots Hopped . | . . . Cave-ins Triggered . | . . . Exploration Rate (%) 36 | 4 60 45 Regions Visited 2 Branch Regions 1 Pre-discovered Areas . | . . . Known Exits Taken 1 | . 1 . Unknown Exits Taken 1 | 1 . . Scrap Searched 1 | . . 1 Spaces Dug . | . . . Terrain Destroyed . | . . . Melee . | . . . Projectile . | . . . AOE . | . . . Actions | -11 -10 -10 --------- Run | Scr Mat Min Total 616 | 63 355 198 Wait 23 | . 23 . Move 523 | 49 298 176 Hop . | . . . Pick Up 12 | 1 10 1 Fast Attach 11 | 8 3 . Attach 7 | . . 7 Detach 4 | 1 3 . Swap . | . . . Drop 2 | 1 . 1 Fire 30 | 3 17 10 Melee . | . . . Ram . | . . . Kick 4 | . 1 3 Crush . | . . . Escape Stasis . | . . . Rewire . | . . . Trap . | . . . Miscellaneous . | . . . Route ------- -11/Scrapyard -10/Materials (discovered 4 exits: *Mat x3 / *Min) -10/Mines (discovered 1 exit: *Mat) History --------- Turn | Location | Event 29 | -11/Scrapyard | Discovered new exit (range 15) 83 | -11/Scrapyard | Entered Materials 168 | -10/Materials | Identified exit to Materials 193 | -10/Materials | Discovered new exit (range 7) 205 | -10/Materials | Identified exit to Mines 317 | -10/Materials | Build established: Mutant 610 | -10/Materials | Entered Mines 618 | -10/Mines | Met a Derelict bent on vengeance 736 | -10/Mines | Discovered exit to Materials (range 11) 842 | -10/Mines | Assembled infested the area 847 | -10/Mines | Assisted by a Guerilla fighting off Assembled 891 | -10/Mines | Core integrity fell below 50% 909 | -10/Mines | Core integrity fell below 20% 916 | -10/Mines | Destroyed by as-95736 with Assembled Rifle Last Messages --------------- 00882_ Particle Gun destroyed. 00884_ Assault Rifle destroyed. 00884_ as-56378 destroyed. 00884_ as-81950 destroyed. 00884_ as-65427 destroyed. 00884_ as-59787 destroyed. 00887_ Kicked as-40662 out of the way. 00888_ Kicked as-77912 out of the way. 00889_ Aluminum Leg destroyed. 00890_ Lgt. Ion Engine destroyed. 00890_ System corrupted by crushing effect (+1). 00890_ Knocked back. 00892_ Slammed into as-47983. 00906_ Aluminum Leg destroyed. 00906_ Lgt. Ion Engine destroyed. 00906_ System corrupted by crushing effect (+3). 00906_ System corrupted by crushing effect (+2). 00911_ Acquired 4 matter. 00915_ D-53 Grenadier system corrupted by crushing effect. 00916_ Acquired 27 matter. Map ----- +----------------------------------------------------+ | | | | | | | | | | | | | | | | | | | | | | | | | | | ?????????????????????????????????????????????????? | | ????????????????????????????####?????????????????? | | ????????????????????????##### ##????????????????? | | ????????????????????????# % ##???????????????? | | ????????????????????????#%## ##??????????????? | | ??????????????????????### ### ###????????????? | | ?????????????????????## ## ####?????????? | | ?????????????????????# ## ##????????? | | ?????????????????????# % # #????????? | | ??????????????????#### % ## ##????????? | | ??????????????????# < ]%= # aa #####??????? | | ?????????????????## a = a ### ##?????? | | ?????????????????# u a @aa #### #?????? | | ????????????# = ##### #?????? | | ???????????# a ###a ## ##### #?????? | | ??????????? #??#*######## #??????? | | ??????????? = ##???#%#????## #???????? | | ???????????? % ###?????#t#???## #???????? | | ???????????? =?????????#a#??## ##??????? | | ????????????? ??????????#%#### ##?????? | | ???????????????????????## ## ##????? | | ??????????????????????## ##???? | | ??????????????????????# ###?? | | ??????????????????????# ## ##? | | ??????????????????????## #### #? | | ???????????????????????# ####??## ##? | | ??????????????????????# ########??????# ##?? | | ??????????????????????# ###?????????????# #??? | | ??????????????????????## ##???????????????# ##?# | | ???????????????????????##?????????????????## ### | | ???????????????????????????????????????????## | | ????????????????????????????????????????????## | | ?????????????????????????????????????????????# | | ?????????????????????????????????????????????## | | ??????????????????????????????????????????????# | | ??????????????????????????????????????????????# | | ??????????????????????????????????????????????## | +----------------------------------------------------+ Best States ------------- Heat Dissipation 25 Energy Generation 14 Energy Capacity 160 Matter Stores 300 Matter Capacity 300 Sight Range 16 Terrain Scan Density 10 Resistance: KI 20 Resistance: TH 20 Resistance: EX 20 Resistance: EM 20 Resistance: I 20 Resistance: S 20 Resistance: P 20 Evasion (%) 40 Offensive Hacking 10 Item Schematics ----------------- None Robot Schematics ------------------ None Fabricated ------------ Nothing Alien Tech Used ----------------- None Achievements -------------- None Challenges ------------ None Game ------ Seed VisualResetShield Manual? 0 Play Time 00:17:08 Cumulative 11.7 hours Start 2020.02.15 @ 20:17:59 End 2020.02.15 @ 20:31:27 Sessions 1 Manual Loads 0 Difficulty Adventurer Special Mode None Game No. 14 Rogue 3 Adventurer 11 Explorer 0 Win Type - Total 0 Types 0/0/0/0/0/0/0 Lore% 12 Gallery% 17 Achievement% 14 Wizard Run 0 Options --------- ASCII 1 Keyboard 1 Movement Vi Keybinds 0 Fullscreen 1 Font 14/Dina Map View 76x50 Tactical HUD 1 Map Filters NONE Filters NONE Steam 1 RUN: 6ba204e8-c2cd-45c6-b96f-2af508cb7443